bitfinex-derivatives/quotes_ETHF0:USTF0_20250830
["timestamp","ask_amount","ask_price","bid_price","bid_amount"]
[1756540858463,0.67391624,4400.0,4399.9,0.7228]
[1756540859057,0.19601624,4400.0,4399.9,0.7228]
[1756540860964,0.47581624,4400.0,4399.9,0.7228]
[1756540861160,0.67391624,4400.0,4399.9,0.7228]
[1756540861865,0.19601624,4400.0,4399.9,0.7228]
[1756540862566,0.47581624,4400.0,4399.9,0.7228]
[1756540863868,0.67391624,4400.0,4399.9,0.7228]
[1756540864167,0.67391624,4400.0,4399.9,0.4928]
[1756540864362,0.4779,4400.0,4399.9,0.524]
[1756540864563,0.67388872,4400.0,4399.9,0.7228]
[1756540865865,0.67388872,4400.0,4399.9,0.4928]
[1756540866065,0.67388872,4400.0,4399.9,0.7228]
[1756540867574,0.19598872,4400.0,4399.9,0.7228]
[1756540867864,0.67658872,4400.0,4399.9,0.7228]
[1756540871369,0.67576853,4400.0,4399.9,0.7228]
[1756540871965,0.67576853,4400.0,4399.9,0.1988]
[1756540872271,0.4806,4399.5,4399.4,0.2907]
[1756540872462,0.4806,4399.5,4399.4,0.5207]
[1756540872463,0.67576853,4399.5,4399.4,0.5207]
[1756540872669,0.67576853,4399.5,4399.2,3.2078]
[1756540872869,0.4806,4399.3,4399.2,3.4985]
[1756540873171,0.67576853,4399.3,4399.2,3.7285]
[1756540874562,0.67576853,4399.3,4399.2,3.4985]
[1756540874768,0.67576853,4399.3,4399.2,3.7285]
[1756540875074,0.67557355,4399.3,4399.2,3.6845]
[1756540875369,0.2814,4399.2,4398.8,0.23]
[1756540875669,0.4806,4398.9,4398.8,0.23]
[1756540875871,0.67557355,4398.9,4398.8,0.7067]
[1756540876462,0.67557355,4398.9,4398.8,0.4767]
[1756540876676,0.1992,4398.7,4398.6,0.2907]
[1756540876973,0.4806,4398.6,4398.5,0.5207]
[1756540877175,0.67557355,4398.6,4398.5,0.5207]
[1756540877972,0.67557355,4398.6,4398.5,0.7067]
[1756540883274,0.67557355,4398.6,4398.5,0.4767]
[1756540883477,0.47637355,4398.6,4398.5,0.7067]
[1756540883676,0.67557355,4398.6,4398.5,0.7067]
[1756540884779,0.19497355,4398.6,4398.5,0.7067]
[1756540885685,0.19433673,4398.6,4398.5,0.7067]
[1756540886373,0.19436884,4398.6,4398.5,0.7067]
[1756540887685,0.19436884,4398.6,4398.5,4.7067]
[1756540889277,0.19441485,4398.6,4398.5,4.416]
[1756540889483,0.19441485,4399.1,4398.5,4.416]
[1756540889686,0.19441485,4399.0,4398.9,0.186]
[1756540889983,0.47581485,4399.0,4398.9,0.7067]
[1756540890180,0.67501485,4399.0,4398.9,0.4767]
[1756540890485,0.67501485,4399.0,4398.9,0.7067]
[1756540891483,0.47581485,4399.0,4398.9,0.7067]
[1756540891787,0.19441485,4399.0,4398.9,0.7067]
[1756540891985,0.4806,4399.0,4398.9,0.7067]
[1756540892186,0.67501485,4399.0,4398.9,0.4767]
[1756540892385,0.67501485,4399.0,4398.9,0.7067]
[1756540896083,0.19441485,4399.0,4398.9,0.7067]
[1756540896279,0.19466824,4399.0,4398.9,0.7067]
[1756540896479,0.19466824,4399.0,4398.9,0.416]
[1756540896690,0.2814,4399.4,4399.0,0.2907]
[1756540896883,0.19467477,4399.3,4399.2,3.3938]
[1756540897083,0.19467477,4399.3,4399.2,3.6238]
[1756540897484,0.19467477,4399.3,4399.2,3.9141]
[1756540903395,0.297,4400.1,4399.2,3.9141]
[1756540903396,0.297,4400.1,4399.2,3.6238]
[1756540903592,0.68662654,4400.0,4399.9,3.6942]
[1756540903786,0.68662654,4400.0,4399.9,3.9242]
[1756540904486,0.68662654,4400.0,4399.9,3.6942]
[1756540904791,0.68662654,4400.0,4399.9,3.9242]
[1756540905290,0.19602654,4400.0,4399.9,3.9242]
[1756540905491,0.49302654,4400.0,4399.9,3.9242]
[1756540905688,0.68662654,4400.0,4399.9,3.9242]
[1756540906905,0.68647667,4400.0,4399.9,3.9242]
[1756540907194,0.68647667,4400.0,4399.9,0.7164]
[1756540907390,0.68647667,4400.0,4399.9,0.23]
[1756540907587,0.68647667,4400.0,4399.9,0.7164]
[1756540917398,0.4906,4400.0,4399.9,0.7164]
[1756540917703,0.68666566,4400.0,4399.9,0.7164]
[1756540920604,0.38966566,4400.0,4399.9,0.7164]
[1756540920806,0.19606566,4400.0,4399.9,0.7164]
[1756540921000,0.49306566,4400.0,4399.9,0.7164]
[1756540921200,0.68666566,4400.0,4399.9,0.7164]
[1756540923608,0.68666566,4400.0,4399.9,0.23]
[1756540925312,0.68666566,4400.0,4399.4,3.2078]
[1756540925513,0.68666566,4399.9,4399.8,0.1961]
[1756540925713,0.68666566,4399.9,4399.8,0.4864]
[1756540926514,0.68666566,4399.9,4399.8,0.7164]
[1756540926815,0.70347206,4399.9,4399.8,0.7164]
[1756540928818,0.70347206,4399.9,4399.8,0.4864]
[1756540929015,0.70347206,4399.9,4399.8,0.7164]
[1756540930218,0.70347206,4399.9,4399.8,0.4864]
[1756540930419,0.70347206,4399.9,4399.8,0.7164]
[1756540930615,0.21287206,4399.9,4399.8,0.7164]
[1756540931517,0.69447206,4399.9,4399.8,0.7164]
[1756540931819,0.69447206,4399.9,4399.8,0.90147685]
[1756540933621,0.21287206,4399.9,4399.8,0.90147685]
[1756540934016,0.50467206,4399.9,4399.8,0.90147685]
[1756540934414,0.69447206,4399.9,4399.8,0.90147685]
[1756540935310,0.69447206,4399.9,4399.8,0.67147685]
[1756540935515,0.69447206,4399.9,4399.8,0.90147685]
[1756540935714,0.50467206,4399.9,4399.8,0.90147685]
[1756540936116,0.69447206,4399.9,4399.8,0.90147685]
[1756540937620,0.6992635,4399.9,4399.8,0.90147685]
[1756540938222,0.69925766,4399.9,4399.8,0.90147685]
[1756540938415,0.6992528,4399.9,4399.8,0.90147685]
[1756540940515,0.6992528,4399.9,4399.8,0.4864]
[1756540940722,0.6992528,4399.9,4399.8,0.23]
[1756540942413,0.2918,4399.8,4399.4,3.488]
[1756540942615,0.1898,4399.2,4399.1,2.02764049]
[1756540942818,0.6992528,4399.2,4398.8,32.74]
[1756540943019,0.1898,4398.9,4398.8,32.74]
[1756540943322,0.6992528,4398.9,4398.8,32.97]
[1756540946024,0.6992528,4398.9,4398.8,32.74]
[1756540946228,0.6992528,4398.9,4398.0,2.02764049]
[1756540946229,0.1898,4398.1,4398.0,2.02764049]
[1756540946420,0.4074528,4398.1,4397.5,2.83869669]
[1756540946722,0.2918,4397.4,4397.1,0.2802]
[1756540946924,0.4074528,4397.3,4397.2,0.7097]
[1756540947225,0.6992528,4397.3,4397.2,0.7097]
[1756540947824,0.6992528,4397.3,4397.2,0.4295]
[1756540948328,0.71010278,4397.3,4397.2,0.23]
[1756540948725,0.70987877,4397.3,4397.2,0.23]
[1756540949029,0.70987817,4397.3,4397.2,0.23]
[1756540949322,0.2918,4397.2,4397.0,3.2078]
[1756540949627,0.70987817,4397.1,4397.0,3.2078]
[1756540949827,0.70987817,4397.1,4397.0,3.4378]
[1756540950028,0.70987817,4397.1,4397.0,3.9175]
[1756540950525,0.70987817,4397.1,4397.0,0.23]
[1756540952020,0.70987817,4397.1,4397.0,0.5102]
[1756540952325,0.70987817,4397.1,4397.0,0.23]
[1756540952723,0.4816,4397.0,4396.9,0.1995]
[1756540952922,0.70987817,4397.0,4396.9,0.1995]
[1756540953431,0.70987817,4397.0,4396.9,0.4797]
[1756540955429,0.70987817,4397.0,4396.8,0.23]
[1756540955625,0.70987817,4396.9,4396.8,0.23]
[1756540955826,0.70987817,4396.9,4396.8,0.7097]
[1756540958829,0.7066107,4396.9,4396.8,0.7097]
[1756540959630,0.2250107,4396.9,4396.8,0.7097]
[1756540959832,0.4945,4397.7,4397.6,0.1966]
[1756540960033,0.71951596,4397.7,4397.6,0.4781]
[1756540962437,0.71963748,4397.7,4397.6,0.4781]
[1756540965836,0.71984358,4397.7,4397.6,0.4781]
[1756540966534,0.71984358,4397.7,4397.4,0.23]
[1756540966729,0.4945,4397.5,4397.4,0.23]
[1756540966933,0.71984358,4397.5,4397.4,0.5115]
[1756540967533,0.71984358,4397.5,4397.4,0.7081]
[1756540967738,0.71984358,4397.5,4397.4,0.23]
[1756540967935,0.71984358,4397.5,4396.9,3.2078]
[1756540968142,0.4945,4397.1,4397.0,0.7081]
[1756540968439,0.71984358,4397.1,4397.0,0.7081]
[1756540969743,0.72030459,4397.1,4397.0,0.7081]
[1756540970235,0.72030554,4397.1,4397.0,0.7081]
[1756540970437,0.72047784,4397.1,4397.0,0.7081]
[1756540972138,0.72047784,4397.1,4397.0,0.4781]
[1756540972344,0.72047784,4397.1,4397.0,0.7081]
[1756540974948,0.72047784,4397.1,4397.0,0.4781]
[1756540975144,0.72047784,4397.1,4397.0,0.7081]
[1756540976853,0.72047784,4397.1,4397.0,0.4781]
[1756540977147,0.72047784,4397.1,4397.0,0.7081]
[1756540978253,0.72047784,4397.1,4396.7,0.2815]
[1756540978254,0.3038,4397.0,4396.7,0.2815]
[1756540978549,3.2078,4397.9,4396.2,8.5158]
[1756540978550,0.1907,4396.8,4396.2,8.5158]
[1756540978749,0.4945,4396.4,4396.3,0.7081]
[1756540978948,0.72047784,4396.4,4396.3,0.7081]
[1756540980152,0.7214958,4396.4,4396.3,0.4781]
[1756540980355,0.7214958,4396.4,4396.3,0.7081]
[1756540980656,0.7214958,4396.4,4396.3,0.4781]
[1756540980856,0.3038,4396.3,4396.2,3.2078]
[1756540981051,0.7214958,4396.3,4396.2,3.2078]
[1756540982154,0.2269958,4396.3,4396.2,3.6859]
[1756540983360,0.5307958,4396.3,4396.2,3.6859]
[1756540984362,0.7214958,4396.3,4396.2,3.6859]
[1756540984863,0.2269958,4396.3,4396.2,3.9159]
[1756540985063,3.2078,4397.7,4396.3,0.1946]
[1756540985263,0.89787644,4397.6,4396.5,0.1946]
[1756540985562,0.3038,4397.6,4396.7,0.1946]
[1756540985765,0.1907,4396.9,4396.8,0.4276]
[1756540986061,0.4945,4396.9,4396.8,0.6222]
[1756540988165,3.2078,4397.7,4396.9,0.1956]
[1756540988467,0.3029,4397.6,4396.9,0.1956]
[1756540990567,0.4914,4397.6,4397.5,0.2038]
[1756540990871,1.62374233,4399.4,4397.5,0.2038]
[1756540990872,0.3029,4398.1,4397.6,0.1956]
[1756540991066,0.4914,4398.1,4398.0,0.3994]
[1756540991260,3.2078,4398.2,4398.1,0.1956]
[1756540991465,4.87122699,4400.8,4398.0,0.4338]
[1756540991466,0.3029,4398.6,4398.0,0.23]
[1756540991670,0.4914,4398.6,4398.5,0.3994]
[1756540993274,0.4914,4398.6,4398.2,0.1956]
[1756540993575,0.4914,4398.6,4398.1,0.1956]
[1756540993971,0.4914,4398.6,4398.0,0.23]
[1756540994164,0.4914,4398.6,4397.7,3.2078]
[1756540994369,0.1885,4397.8,4397.4,0.1956]
[1756540994568,0.1885,4397.6,4397.5,0.231]
[1756540994770,0.4914,4397.6,4397.5,0.231]
[1756540994968,0.4914,4397.6,4397.5,0.6304]
[1756540995777,0.4914,4397.6,4397.5,0.3994]
[1756540996078,0.4914,4397.6,4397.5,0.4348]
[1756540996978,0.71444416,4397.6,4397.5,0.6304]
[1756540997272,0.71444416,4397.6,4397.5,0.4348]
[1756540997477,0.41154416,4397.6,4397.3,3.2078]
[1756540997678,0.4914,4397.4,4397.3,3.2078]
[1756540997877,0.71444416,4397.4,4397.3,0.23]
[1756540998073,0.71444416,4397.4,4397.3,0.6294]
[1756540998272,0.71444416,4397.4,4397.3,0.23]
[1756540999969,0.71444416,4397.4,4396.7,3.4034]
[1756541000179,0.52589746,4397.3,4396.8,0.23]
[1756541000380,0.4914,4396.9,4396.8,0.23]
[1756541000580,0.71439746,4396.9,4396.7,3.4034]
[1756541000880,0.7143894,4396.8,4396.3,0.1956]
[1756541001177,0.4914,4396.5,4396.4,0.23]
[1756541001377,0.7143894,4396.5,4396.4,0.23]
[1756541002174,0.7143894,4396.5,4396.4,0.4338]
[1756541002381,0.7143894,4396.5,4396.4,0.6294]
[1756541002682,0.3029,4396.4,4396.1,3.2078]
[1756541002885,0.3029,4396.2,4396.1,3.2078]
[1756541003079,0.7143894,4396.2,4396.1,3.4388]
[1756541003279,0.7143894,4396.2,4396.1,3.8382]
[1756541003475,0.22292571,4396.2,4396.1,3.8382]
[1756541009080,0.71432571,4396.2,4396.1,3.8372]
[1756541009484,0.71432571,4396.2,4396.1,3.6072]
[1756541009683,0.71432571,4396.2,4396.1,3.8372]
[1756541010686,0.71450107,4396.2,4396.1,3.8372]
[1756541016790,0.22310107,4396.2,4396.1,3.8372]
[1756541017990,0.22629648,4396.2,4396.1,3.8372]
[1756541021394,0.22631907,4396.2,4396.1,3.8372]
[1756541022792,0.71131907,4396.2,4396.1,3.6072]
[1756541022990,0.71131907,4396.2,4396.1,3.8372]
[1756541025993,0.71131907,4396.2,4396.1,3.6072]
[1756541026185,0.71131907,4396.2,4396.1,3.8372]
[1756541026390,0.71131907,4396.2,4396.1,3.6072]
[1756541026684,0.485,4395.9,4395.8,32.756]
[1756541026888,0.71131907,4395.9,4395.8,33.1823]
[1756541028598,0.71131907,4395.9,4395.8,32.9523]
[1756541028897,0.71131907,4395.9,4395.8,33.1823]
[1756541029398,0.71131907,4395.9,4395.8,32.9523]
[1756541029598,0.71131907,4395.9,4395.8,33.1823]
[1756541031998,0.485,4395.9,4395.8,33.1823]
[1756541032193,0.71189134,4395.9,4395.8,33.1823]
[1756541032597,0.485,4395.9,4395.8,33.1823]
[1756541032798,0.71186561,4395.9,4395.8,33.1823]
[1756541036400,0.71186561,4395.9,4395.8,32.9523]
[1756541036599,0.71186561,4395.9,4395.8,33.1823]
[1756541038102,0.71186561,4395.9,4395.8,0.617]
[1756541041503,0.71179585,4395.9,4395.8,0.617]
[1756541042198,0.71179657,4395.9,4395.8,0.617]
[1756541045607,0.22679657,4395.9,4395.8,0.617]
[1756541045808,0.51369657,4395.9,4395.8,0.617]
[1756541047306,0.22679657,4395.9,4395.8,0.387]
[1756541047506,0.52859657,4395.9,4395.8,0.617]
[1756541050210,0.72739657,4395.9,4395.8,0.617]
[1756541052207,0.72710508,4395.9,4395.8,0.617]
[1756541054205,0.72710508,4395.9,4395.8,0.23]
[1756541054915,0.72710508,4395.9,4395.8,0.4252]
[1756541055711,0.5006,4395.9,4395.8,0.4252]
[1756541055914,0.727251,4395.9,4395.8,0.4252]
[1756541057018,0.727251,4395.9,4395.8,0.6302]
[1756541057617,0.226651,4395.9,4395.8,0.6302]
[1756541058213,0.528451,4395.9,4395.8,0.6302]
[1756541059320,0.727251,4395.9,4395.8,0.6302]
[1756541060818,0.727251,4395.9,4395.8,0.205]
[1756541061118,0.727251,4395.9,4395.8,0.23]
[1756541061621,0.727251,4395.9,4395.8,0.6303]
[1756541062718,0.7272756,4395.9,4395.8,0.6303]
[1756541063224,0.5006,4395.9,4395.8,0.6303]
[1756541063425,0.72727,4395.9,4395.8,0.6303]
[1756541063623,0.22667,4395.9,4395.8,0.6303]
[1756541063819,0.72727,4395.9,4395.8,0.6303]
[1756541064821,0.52847,4395.9,4395.8,0.6303]
[1756541066526,0.72727,4395.9,4395.8,0.6303]
[1756541066823,0.72727,4395.9,4395.6,3.2078]
[1756541066824,0.1988,4395.7,4395.6,3.4031]
[1756541067129,0.72727,4395.7,4395.6,3.6331]
[1756541067317,0.72727,4395.7,4395.6,3.4031]
[1756541067520,0.72727,4395.7,4395.6,3.6331]
[1756541068627,0.72727,4395.7,4395.6,3.8381]
[1756541070229,0.72727,4395.7,4395.6,3.6081]
[1756541070528,0.72727,4395.7,4395.6,3.8381]
[1756541072325,0.22667,4395.7,4395.6,3.8381]
[1756541073329,0.22679518,4395.7,4395.6,3.8381]
[1756541077540,0.22679518,4395.7,4395.6,9.1461]
[1756541080437,0.20938339,4395.7,4395.6,9.1461]
[1756541080640,0.49778339,4395.7,4395.6,9.1461]
[1756541081535,0.49778339,4395.7,4395.6,5.9383]
[1756541081737,0.69118339,4395.7,4395.6,5.9383]
[1756541081937,0.69118339,4395.7,4395.6,5.7083]
[1756541082139,0.69118339,4395.7,4395.6,5.9383]
[1756541083235,0.69118339,4395.7,4395.6,5.7083]
[1756541083440,0.69118339,4395.7,4395.6,0.6303]
[1756541083636,0.2884,4395.6,4395.2,7.33564049]
[1756541083842,0.4818,4395.4,4395.3,0.621]
[1756541084144,0.69113868,4395.4,4395.3,0.621]
[1756541084944,0.69110663,4395.4,4395.3,0.621]
[1756541086444,0.69110663,4395.4,4395.3,0.391]
[1756541086646,0.69110663,4395.4,4395.3,0.621]
[1756541088945,0.69110663,4395.4,4395.3,0.23]
[1756541090246,0.69110663,4395.4,4395.3,0.621]
[1756541090750,0.69110663,4395.4,4395.3,0.63409352]
[1756541092748,0.20930663,4395.4,4395.3,0.63409352]
[1756541094647,0.20894262,4395.4,4395.3,0.43839352]
[1756541094854,0.20894262,4395.4,4395.3,0.63409352]
[1756541098256,0.20895359,4395.4,4395.3,0.63409352]
[1756541100255,0.20895359,4395.4,4395.3,4.63409352]
[1756541100445,0.01325359,4395.4,4395.3,4.63409352]
[1756541102553,0.2884,4396.2,4395.3,4.63409352]
[1756541102757,0.2884,4396.2,4396.1,3.2078]
[1756541103057,0.4818,4396.2,4396.1,3.4378]
[1756541103659,0.4818,4396.2,4396.1,3.45089352]
[1756541105758,3.2078,4396.8,4396.1,3.45089352]
[1756541105959,0.2884,4396.6,4396.1,3.45089352]
[1756541106257,0.2884,4396.7,4396.1,3.45089352]
[1756541106457,0.2884,4396.6,4396.2,5.308]
[1756541106658,3.4962,4396.8,4396.4,0.01309352]
[1756541106860,0.2884,4396.8,4396.5,0.23]
[1756541107059,0.2987,4397.5,4396.5,0.23]
[1756541107260,3.2078,4397.6,4396.5,5.538]
[1756541107768,0.1917,4397.1,4397.0,0.01309352]
[1756541107961,0.4904,4397.1,4397.0,0.24309352]
[1756541111165,0.2987,4397.4,4397.0,5.55109352]
[1756541111364,3.2078,4398.3,4397.1,8.5158]
[1756541111562,0.2987,4398.2,4397.2,0.23]
[1756541111758,0.2987,4398.2,4397.3,5.308]
[1756541111963,0.1917,4397.8,4397.7,0.01309352]
[1756541112263,0.4904,4397.8,4397.7,0.24309352]
[1756541112465,0.69583229,4397.8,4397.7,0.24309352]
[1756541114770,0.69565038,4397.8,4397.7,0.24309352]
[1756541115369,0.4904,4397.8,4397.7,0.24309352]
[1756541116972,0.2987,4397.8,4397.7,0.24309352]
[1756541118174,3.2078,4399.0,4397.9,0.40925]
[1756541118366,0.20499254,4398.9,4398.4,3.2078]
[1756541118566,3.2078,4399.8,4398.5,0.23]
[1756541118567,0.1917,4398.6,4398.5,0.23]
[1756541118771,0.4904,4398.6,4398.5,0.23]
[1756541119072,0.4904,4398.6,4398.5,0.24309352]
[1756541120170,0.2987,4398.6,4398.5,0.24309352]
[1756541120369,3.2078,4399.8,4398.5,0.24309352]
[1756541120370,0.2987,4399.7,4398.5,0.24309352]
[1756541120573,0.2987,4399.5,4398.5,0.24309352]
[1756541120770,0.4904,4398.6,4398.5,0.01309352]
[1756541120972,0.4904,4398.6,4398.5,0.24309352]
[1756541127372,0.4904,4398.6,4398.5,41.04309352]
[1756541128976,0.4904,4398.6,4398.5,40.81309352]
[1756541129175,0.4904,4398.6,4398.5,41.04309352]
[1756541129574,0.3475,4398.6,4398.5,41.18479352]
[1756541129771,0.2987,4398.6,4398.5,41.18479352]
[1756541130075,0.2987,4398.6,4398.5,46.49279352]
[1756541132285,0.2987,4398.6,4398.5,5.88689352]
[1756541132783,0.4904,4398.6,4398.5,5.88689352]
[1756541134583,0.2987,4398.6,4398.5,5.88689352]
[1756541136489,3.2078,4399.8,4398.6,0.1417]
[1756541136490,0.2987,4399.7,4398.6,0.1417]
[1756541136682,3.2078,4399.8,4398.6,0.1417]
[1756541136683,0.4904,4399.1,4399.0,3.5436]
[1756541136882,0.69552629,4399.1,4399.0,3.78669352]
[1756541137080,0.69552038,4399.1,4399.0,3.78669352]
[1756541140583,0.50382038,4399.1,4399.0,3.78669352]
[1756541141174,0.20512038,4399.1,4399.0,3.78669352]
[1756541141884,0.50702038,4399.1,4399.0,3.78669352]
[1756541142089,0.20512038,4399.1,4399.0,3.78669352]
[1756541142586,0.50702038,4399.1,4399.0,3.78669352]
[1756541142884,0.50702038,4399.1,4399.0,9.09469352]
[1756541143888,0.50702038,4399.1,4399.0,8.86469352]
[1756541144088,0.50702038,4399.1,4399.0,9.09469352]
[1756541146689,0.20512038,4399.1,4399.0,9.09469352]
[1756541146887,0.20367591,4399.1,4399.0,9.09469352]
[1756541147695,0.20376782,4399.1,4399.0,9.09549352]
[1756541148594,0.50566782,4399.1,4399.0,9.09549352]
[1756541149289,0.70486782,4399.1,4399.0,9.09549352]
[1756541151698,0.70486782,4399.1,4399.0,8.75889352]
[1756541151893,0.50566782,4399.1,4399.0,8.96099352]
[1756541152195,0.20376782,4399.1,4399.0,9.10349352]
[1756541155484,0.3019,4399.5,4399.1,0.40914]
[1756541155686,3.2078,4400.5,4399.5,0.1425]
[1756541155687,0.3019,4400.4,4399.5,0.1425]
[1756541155890,0.3019,4400.4,4399.6,3.5803]
[1756541155891,0.3019,4400.3,4399.6,3.5803]
[1756541156090,0.5011,4400.0,4399.9,0.15559352]
[1756541156299,0.5011,4400.0,4399.9,0.38559352]
[1756541156485,0.5011,4400.0,4399.9,0.24309352]
[1756541159196,0.5011,4400.0,4399.9,0.58769352]
[1756541164408,0.5011,4400.0,4399.9,0.24309352]
[1756541166203,0.5011,4400.0,4399.9,0.01309352]
[1756541166504,0.5011,4399.7,4399.2,32.735]
[1756541166703,0.1992,4399.4,4399.3,0.23]
[1756541166904,0.4892,4399.4,4399.3,0.23]
[1756541167406,0.1992,4399.4,4398.7,0.3085]
[1756541167603,0.1952,4398.8,4398.7,0.5123]
[1756541167803,0.69835857,4398.8,4398.7,0.7423]
[1756541168504,0.21315857,4398.8,4398.7,0.7423]
[1756541169406,0.69835857,4398.8,4398.7,0.7423]
[1756541170507,0.69835857,4398.8,4398.7,0.5123]
[1756541170702,0.69835857,4398.8,4398.7,0.23]
[1756541172314,0.40835857,4398.8,4398.7,0.23]
[1756541172511,0.69835857,4398.8,4398.7,0.23]
[1756541173213,0.70064199,4398.8,4398.7,0.23]
[1756541175708,0.29,4398.7,4398.4,3.2078]
[1756541175908,0.29,4398.4,4398.1,0.3027]
[1756541176113,0.1952,4398.2,4397.8,0.3027]
[1756541176317,0.29,4398.0,4397.9,0.7365]
[1756541176619,0.41064199,4398.0,4397.7,3.2078]
[1756541176816,0.70064199,4397.9,4397.8,0.23]
[1756541177210,0.70064199,4397.9,4397.8,0.5327]
[1756541177517,0.70043655,4397.9,4397.8,0.5327]
[1756541178522,0.4852,4397.6,4397.5,0.5065]
[1756541178709,0.70043655,4397.6,4397.5,0.7365]
[1756541181015,0.4852,4397.6,4397.5,0.7365]
[1756541181205,0.70013914,4397.6,4397.5,0.7365]
[1756541188121,0.69978923,4397.6,4397.5,0.7365]
[1756541188824,0.69978923,4397.6,4397.5,0.5065]
[1756541189019,0.69978923,4397.6,4397.5,0.7365]
[1756541189824,0.21458923,4397.6,4397.5,0.7365]
[1756541190220,3.2078,4398.5,4397.6,0.3027]
[1756541190425,0.4852,4398.3,4398.2,0.5065]
[1756541190625,0.69979204,4398.3,4398.2,0.7365]
[1756541191221,0.21459204,4398.3,4398.2,0.7365]
[1756541191424,0.29,4399.0,4398.3,0.3027]
[1756541191628,0.4852,4399.0,4398.9,0.5065]
[1756541191927,0.69977437,4399.0,4398.9,0.7365]
[1756541192127,0.69977437,4399.0,4398.9,0.5065]
[1756541192426,0.69977437,4399.0,4398.9,0.7365]
[1756541198730,0.4852,4399.0,4398.9,0.7365]
[1756541198930,0.70139688,4399.0,4398.9,0.7365]
[1756541199634,0.21619688,4399.0,4398.9,0.7365]
[1756541200130,0.69599688,4399.0,4398.9,0.7365]
[1756541207434,0.69599688,4399.0,4398.9,0.2038]
[1756541207734,0.4798,4398.4,4398.2,3.2078]
[1756541208043,0.4798,4398.4,4398.3,0.5185]
[1756541208335,0.69601573,4398.4,4398.3,0.5185]
[1756541208640,0.69601573,4398.4,4398.3,0.7179]
[1756541209343,0.69605312,4398.4,4398.3,0.7179]
[1756541209544,0.69605314,4398.4,4398.3,0.7179]
[1756541211740,0.69605314,4398.4,4398.3,0.4879]
[1756541211939,0.69605314,4398.4,4398.3,0.7179]
[1756541212444,0.69605314,4398.4,4398.3,0.4879]
[1756541212743,0.69605314,4398.4,4398.3,0.7179]
[1756541213048,0.69616466,4398.4,4398.3,0.7179]
[1756541214246,0.21636466,4398.4,4398.3,0.7179]
[1756541214641,0.21636466,4398.4,4398.3,4.7179]
[1756541216649,0.21646155,4398.4,4398.3,4.7179]
[1756541218644,0.21646155,4398.4,4398.3,0.7179]
[1756541218840,3.2078,4399.9,4398.3,0.7179]
[1756541218841,3.4971,4399.9,4399.8,0.2885]
[1756541219045,3.4971,4399.9,4399.8,0.7179]
[1756541219954,3.6876,4399.9,4399.8,0.7179]
[1756541220154,0.23,4401.3,4399.9,0.2885]
[1756541220155,0.2893,4401.2,4399.9,0.2885]
[1756541220446,0.2893,4401.2,4399.8,3.4378]
[1756541220447,0.4798,4401.1,4401.0,0.4879]
[1756541220644,0.4798,4401.1,4401.0,0.7179]
[1756541221246,0.1905,4401.1,4400.6,0.2885]
[1756541221446,0.4798,4400.7,4400.6,0.2885]
[1756541221654,0.4798,4400.7,4400.6,0.5185]
[1756541221853,0.4798,4400.7,4400.6,0.7179]
[1756541223755,0.4798,4400.7,4400.6,0.4294]
[1756541223955,0.4798,4400.7,4400.6,0.23]
[1756541224354,0.4798,4400.7,4400.6,0.5185]
[1756541224658,0.4798,4400.7,4400.6,0.7179]
[1756541225255,3.2078,4401.9,4400.6,0.7179]
[1756541225457,3.2078,4402.4,4401.4,3.2078]
[1756541225759,3.2078,4402.4,4401.6,0.1994]
[1756541225954,0.4798,4401.7,4401.6,0.1994]
[1756541226562,0.4798,4401.7,4401.6,0.4879]
[1756541230267,0.2911,4401.6,4401.4,3.5011]
[1756541230573,0.4847,4401.5,4401.4,3.6917]
[1756541230869,0.4847,4401.5,4401.4,3.9217]
[1756541233165,0.1936,4401.6,4401.5,0.4839]
[1756541234268,3.2078,4403.1,4401.6,0.2933]
[1756541234471,0.49167197,4403.0,4401.9,0.2933]
[1756541234771,0.4847,4402.1,4402.0,0.7139]
[1756541235871,0.2911,4402.5,4402.0,0.4206]
[1756541236059,0.2911,4402.5,4402.4,0.4839]
[1756541236262,0.49159264,4402.5,4402.4,0.7139]
[1756541236966,0.39409264,4402.5,4402.4,0.7139]
[1756541237171,0.2911,4403.5,4402.5,0.2933]
[1756541237372,0.20041306,4403.4,4402.5,0.2933]
[1756541237677,0.49151306,4403.3,4402.5,0.2933]
[1756541237867,0.4847,4403.1,4403.0,0.1906]
[1756541238074,0.68511306,4403.1,4403.0,0.7139]
[1756541239679,0.4847,4403.1,4403.0,0.7139]
[1756541240073,0.2911,4404.1,4403.1,0.2933]
[1756541240380,0.1936,4403.7,4403.6,3.6917]
[1756541240584,0.68488919,4403.7,4403.6,0.23]
[1756541240873,0.68488919,4403.7,4403.0,0.2933]
[1756541241075,0.4847,4403.1,4403.0,0.1906]
[1756541241377,0.4847,4403.1,4403.0,0.7139]
[1756541241578,0.4847,4403.0,4402.9,3.2078]
[1756541241772,0.4847,4403.0,4402.9,3.4378]
[1756541242276,0.68507081,4403.0,4402.9,3.4378]
[1756541243079,0.68507081,4403.0,4402.9,3.3984]
[1756541243280,0.20037081,4403.0,4402.9,3.9217]
[1756541243479,0.1936,4403.0,4402.9,3.9217]
[1756541243681,0.2911,4404.6,4403.0,0.2933]
[1756541243883,0.2911,4404.0,4403.6,3.6917]
[1756541244083,0.68512905,4403.9,4403.8,0.4839]
[1756541244780,0.68512905,4403.9,4403.8,0.1906]
[1756541244982,0.49152905,4403.9,4403.8,0.4839]
[1756541245277,0.68512905,4403.9,4403.8,0.4839]
[1756541245580,0.68512905,4403.9,4403.8,0.23]
[1756541245777,0.2911,4403.8,4403.2,0.2933]
[1756541245982,0.2911,4403.6,4403.3,0.5233]
[1756541246183,0.4847,4403.6,4403.5,0.4839]
[1756541246380,0.68536599,4403.6,4403.5,0.4839]
[1756541246979,0.68536599,4403.6,4403.5,0.23]
[1756541248178,0.39426599,4403.6,4403.5,0.23]